bitfinex/quotes_ETHUSD_20250523
["timestamp","ask_amount","ask_price","bid_price","bid_amount"]
[1747961051939,1.5128,2649.3,2648.3,3.77598303]
[1747961052228,3.7755236,2648.7,2648.3,8.0]
[1747961052586,3.77521621,2648.9,2648.4,3.7758319]
[1747961052995,3.77529591,2648.8,2648.4,3.7758319]
[1747961053180,3.77529591,2648.8,2648.2,11.77610744]
[1747961053181,3.77529591,2648.8,2648.3,3.7759273]
[1747961053523,3.77522504,2648.9,2648.4,3.77586007]
[1747961053885,3.77508676,2649.0,2648.4,3.77586007]
[1747961054087,3.77506193,2649.0,2648.6,8.0]
[1747961054315,3.775241,2648.9,2648.7,42.367]
[1747961055119,3.77529447,2648.8,2648.7,39.051]
[1747961055429,3.77529447,2648.8,2648.7,42.367]
[1747961057248,6.19254802,2648.8,2648.7,16.295]
[1747961057451,6.19254802,2648.8,2648.7,42.364]
[1747961057624,6.19254802,2648.8,2648.7,31.049]
[1747961058127,4.53034802,2648.8,2648.7,31.049]
[1747961058454,3.77529447,2648.8,2648.7,31.049]
[1747961063362,3.77529447,2648.8,2648.7,16.295]
[1747961063546,3.77529447,2648.8,2648.7,42.363]
[1747961068285,11.334,2649.9,2648.7,42.363]
[1747961068286,3.77472759,2649.2,2648.8,8.0]
[1747961068592,3.77415458,2649.6,2648.8,11.77526299]
[1747961068883,3.77465331,2649.3,2648.8,11.77526299]
[1747961069478,3.77478184,2649.2,2648.8,8.0]
[1747961069683,3.77493707,2649.1,2648.8,8.0]
[1747961069981,3.77462908,2649.3,2648.8,11.77525375]
[1747961069982,3.77466433,2649.3,2648.8,11.77525375]
[1747961070353,0.02,2649.9,2648.8,8.0]
[1747961070540,0.06717884,2649.9,2648.8,8.0]
[1747961070748,3.77450686,2649.4,2649.0,8.0]
[1747961071274,3.77461735,2649.3,2648.8,11.7752263]
[1747961071876,3.77416829,2649.6,2648.8,8.0]
[1747961072075,3.77479885,2649.2,2648.8,8.0]
[1747961072448,3.77479885,2649.2,2649.0,8.0]
[1747961072646,3.77486693,2649.1,2649.0,8.0]
[1747961072904,3.77515194,2648.9,2648.8,8.0]
[1747961073072,3.7749269,2649.1,2649.0,34.047]
[1747961074307,3.7749269,2649.1,2649.0,34.045]
[1747961074652,3.77529447,2648.8,2648.7,24.295]
[1747961074951,3.77529447,2648.8,2648.7,50.34]
[1747961075555,3.77522478,2648.9,2648.8,8.0]
[1747961076990,3.77529447,2648.8,2648.7,31.028]
[1747961077242,3.77529447,2648.8,2648.7,42.34]
[1747961078692,3.77518056,2648.9,2648.7,42.34]
[1747961079029,3.77502148,2649.0,2648.7,42.34]
[1747961079324,3.77529447,2648.8,2648.7,31.028]
[1747961079516,3.77529447,2648.8,2648.7,42.34]
[1747961084224,5.27996972,2649.8,2648.8,8.0]
[1747961084424,3.77501114,2649.0,2648.8,8.0]
[1747961085323,3.77515194,2648.9,2648.8,8.0]
[1747961085636,3.77515194,2648.9,2648.8,34.045]
[1747961087745,3.7741513,2649.7,2649.1,3.77473204]
[1747961087952,5.30201039,2649.8,2649.3,3.77450119]
[1747961087953,5.3020267,2649.8,2649.3,3.77450119]
[1747961088136,3.77386972,2649.8,2649.4,26.045]
[1747961088452,0.02,2649.9,2649.5,14.733]
[1747961088453,3.77408663,2649.7,2649.5,14.733]
[1747961088749,3.79375944,2649.9,2649.0,8.0]
[1747961088750,3.77442949,2649.5,2649.0,8.0]
[1747961088947,3.77452977,2649.4,2649.1,26.043]
[1747961089157,0.02,2649.9,2649.1,26.043]
[1747961089158,3.77435593,2649.5,2649.1,26.043]
[1747961089456,3.774216,2649.6,2649.1,29.81785366]
[1747961089651,3.7743029,2649.5,2649.1,26.043]
[1747961089950,3.7743029,2649.5,2649.1,29.81785624]
[1747961090156,0.02,2649.9,2649.1,29.81785624]
[1747961090343,3.77430821,2649.5,2649.2,14.732]
[1747961090659,3.77422265,2649.6,2649.2,14.732]
[1747961091157,3.77431836,2649.5,2649.2,14.732]
[1747961091653,3.77431836,2649.5,2649.3,11.311]
[1747961091857,3.77451158,2649.4,2649.2,14.732]
[1747961092058,3.77451158,2649.4,2649.3,11.311]
[1747961092952,3.77465564,2649.3,2649.0,8.0]
[1747961093130,3.77465564,2649.3,2649.1,26.042]
[1747961093330,3.77464932,2649.3,2649.1,26.042]
[1747961094169,1.6105,2649.7,2649.2,8.0]
[1747961094335,2.15093899,2649.7,2649.2,8.0]
[1747961094541,3.77458196,2649.3,2649.2,8.0]
[1747961094971,3.77477074,2649.2,2648.8,8.0]
[1747961095454,3.77490241,2649.1,2649.0,8.0]
[1747961095654,3.77479994,2649.2,2649.0,8.0]
[1747961096231,3.77486693,2649.1,2649.0,8.0]
[1747961097268,3.77480099,2649.2,2649.0,8.0]
[1747961097705,3.77479196,2649.2,2649.0,8.0]
[1747961098389,3.77486693,2649.1,2649.0,8.0]
[1747961098529,3.77486693,2649.1,2649.0,19.31]
[1747961098952,3.77486693,2649.1,2649.0,34.021]
[1747961100273,3.77486693,2649.1,2649.0,22.711]
[1747961100489,3.77486693,2649.1,2648.7,16.295]
[1747961100490,3.77529447,2648.8,2648.7,16.295]
[1747961100775,5.41698625,2648.8,2648.7,31.007]
[1747961101164,5.91979447,2648.8,2648.7,31.007]
[1747961101360,5.71948883,2648.8,2648.7,16.295]
[1747961101560,5.36634983,2648.2,2648.1,1.19765448]
[1747961101764,5.96355784,2648.2,2648.1,15.90965448]
[1747961101968,5.91634983,2648.2,2648.1,14.712]
[1747961102187,6.88558772,2648.2,2648.1,14.712]
[1747961102746,5.36634983,2648.2,2648.1,14.712]
[1747961104697,5.91634983,2648.2,2648.1,14.712]
[1747961105268,5.91634983,2648.2,2647.8,16.287]
[1747961105269,4.32657766,2647.9,2647.8,16.287]
[1747961105469,3.77657766,2647.9,2647.8,31.001]
[1747961109600,3.77694843,2647.7,2647.2,3.77756266]
[1747961109890,3.77694843,2647.7,2647.3,14.717]
[1747961110385,3.77676867,2647.8,2647.3,18.49442554]
[1747961110545,3.77676867,2647.8,2647.3,14.717]
[1747961110883,3.77697525,2647.7,2647.4,11.315]
[1747961111039,3.77676867,2647.8,2647.4,11.315]
[1747961111040,3.77676866,2647.8,2647.4,11.315]
[1747961111592,3.77693429,2647.7,2647.5,11.315]
[1747961112277,1.6221,2648.2,2647.5,11.315]
[1747961112587,3.77673764,2647.8,2647.5,11.315]
[1747961115197,3.77621194,2648.2,2647.7,3.77686293]
[1747961115358,1.6111,2648.5,2647.6,24.294]
[1747961115359,1.6111,2648.5,2647.9,8.0]
[1747961115561,3.77553246,2648.7,2648.2,3.77608223]
[1747961115786,3.77553246,2648.7,2648.3,26.034]
[1747961115968,3.77586467,2648.4,2648.3,26.034]
[1747961116584,3.77566511,2648.6,2648.3,26.034]
[1747961116755,3.79516135,2648.9,2648.3,26.034]
[1747961116969,3.77586467,2648.4,2648.3,26.034]
[1747961117299,0.93812806,2648.9,2648.3,26.034]
[1747961117462,3.77545619,2648.7,2648.3,26.034]
[1747961117664,3.77559273,2648.6,2648.3,26.034]
[1747961118603,0.02,2648.9,2648.8,8.0]
[1747961118786,1.633,2649.7,2648.9,11.77508562]
[1747961119018,0.02,2649.9,2649.1,3.77474978]
[1747961119189,0.02,2649.9,2649.0,11.315]
[1747961119568,0.02,2649.9,2649.1,26.032]
[1747961119762,3.79385266,2649.9,2649.1,26.032]
[1747961120086,3.77472444,2649.2,2649.1,26.032]
[1747961121544,3.77447763,2649.4,2649.1,26.032]
[1747961121736,3.77449448,2649.4,2649.1,26.032]
[1747961122294,3.77472093,2649.3,2649.1,26.032]
[1747961122589,3.77463277,2649.3,2649.1,26.032]
[1747961122814,3.77435011,2649.5,2649.1,26.032]
[1747961123131,3.77466749,2649.3,2649.1,26.032]
[1747961123516,3.77447099,2649.4,2649.1,26.032]
[1747961123517,3.77472444,2649.2,2649.1,26.032]
[1747961123718,3.77435418,2649.5,2649.1,26.032]
[1747961124037,3.77450485,2649.4,2649.1,26.032]
[1747961124230,0.02,2649.9,2649.1,26.032]
[1747961124432,0.02,2649.9,2649.2,8.0]
[1747961124643,0.02,2649.9,2649.4,8.0]
[1747961124926,0.02,2649.9,2649.8,3.77386972]
[1747961125127,0.02,2649.9,2649.8,46.08886972]
[1747961125326,0.02,2649.9,2649.8,50.315]
[1747961125528,0.02,2649.9,2649.8,54.08886972]
[1747961125728,0.02,2649.9,2649.8,50.315]
[1747961126231,4.17308796,2649.9,2649.8,16.289]
[1747961126394,4.17308796,2649.9,2649.8,31.003]
[1747961128634,4.17308796,2649.9,2649.8,42.314]
[1747961129835,4.17308796,2649.9,2649.8,16.289]
[1747961130051,4.17308796,2649.9,2649.8,30.986]
[1747961130052,4.72308796,2649.9,2649.8,30.986]
[1747961130397,1.5851,2649.6,2649.2,16.287]
[1747961130602,1.5851,2649.6,2648.2,14.5]
[1747961130603,4.32443949,2649.4,2649.3,14.696]
[1747961130844,3.77500943,2649.0,2648.9,35.597]
[1747961131022,3.77494252,2649.1,2649.0,8.0]
[1747961132645,1.5851,2649.6,2649.0,8.0]
[1747961132801,3.77483565,2649.2,2649.0,8.0]
[1747961133001,3.77473783,2649.2,2649.0,8.0]
[1747961133442,3.77449648,2649.4,2649.0,8.0]
[1747961133443,3.77464695,2649.3,2649.0,8.0]
[1747961133615,3.77438944,2649.5,2649.0,8.0]
[1747961133816,3.77416693,2649.6,2649.1,3.77478126]
[1747961134045,3.77427243,2649.6,2649.2,8.0]
[1747961134342,1.6817,2649.9,2648.9,46.06810874]
[1747961134343,3.7937618,2649.9,2649.0,8.0]
[1747961134501,3.7937618,2649.9,2649.8,8.0]
[1747961134502,0.02,2649.9,2649.8,8.0]
[1747961134704,0.02,2649.9,2649.8,34.006]
[1747961135134,3.79380728,2649.9,2649.8,34.006]
[1747961135335,0.02,2649.9,2649.8,34.006]
[1747961135924,3.79372731,2649.9,2649.8,34.006]
[1747961138147,0.02,2649.9,2649.8,34.006]
[1747961139067,3.79372731,2649.9,2649.8,34.006]
[1747961139230,0.02,2649.9,2649.8,34.006]
[1747961139548,0.02,2649.9,2649.8,22.696]
[1747961139549,3.79372731,2649.9,2649.8,22.696]
[1747961139760,3.79372731,2649.9,2649.8,34.004]
[1747961139914,4.55046642,2649.9,2649.8,34.002]
[1747961141114,0.02,2649.9,2649.8,34.002]
[1747961141330,0.02,2649.9,2649.8,37.77586972]
[1747961141531,5.41702009,2650.6,2650.0,8.0]
[1747961141744,3.77244605,2650.8,2650.1,16.284]
[1747961141928,3.77330012,2650.2,2650.1,24.284]
[1747961142133,3.77330012,2650.2,2650.1,50.286]
[1747961142345,3.77330012,2650.2,2650.1,24.284]
[1747961142747,3.77330012,2650.2,2650.1,50.284]
[1747961142935,4.68606829,2650.2,2650.1,50.284]
[1747961144421,3.77330012,2650.2,2650.1,50.284]
[1747961145250,1.08415461,2650.8,2650.2,8.0]
[1747961145456,3.7727046,2650.7,2650.2,11.77327009]
[1747961145656,3.77280779,2650.6,2650.2,8.0]
[1747961146346,3.77290751,2650.5,2650.2,8.0]
[1747961146747,3.77250489,2650.8,2650.2,8.0]
[1747961146942,0.02,2650.9,2650.4,11.77295432]
[1747961147170,3.77244848,2650.8,2650.4,8.0]
[1747961147355,0.02,2650.9,2650.7,3.77255357]
[1747961147540,0.02,2650.9,2650.8,33.999]
[1747961148055,3.79230374,2650.9,2650.8,33.999]
[1747961148452,3.79230374,2650.9,2650.8,33.997]
[1747961148670,3.79230374,2650.9,2650.8,33.996]
[1747961149256,3.79230374,2650.9,2650.8,8.0]
[1747961149460,4.69924255,2650.9,2650.8,33.996]
[1747961149642,4.69924255,2650.9,2650.8,8.0]
[1747961149946,4.69924255,2650.9,2650.8,33.996]
[1747961150374,3.77330012,2650.2,2650.1,16.284]
[1747961150534,3.77330012,2650.2,2650.1,42.28]
[1747961150730,3.77330012,2650.2,2650.1,50.28]
[1747961151272,3.77319596,2650.3,2650.1,50.28]
[1747961151427,3.7730867,2650.4,2650.1,50.28]
[1747961151789,3.77330012,2650.2,2650.1,38.974]
[1747961151930,3.77330012,2650.2,2650.1,50.279]
[1747961153278,3.77316882,2650.3,2650.1,50.279]
[1747961153568,5.29046623,2650.8,2650.1,50.279]
[1747961153569,3.77330012,2650.2,2650.1,50.279]
[1747961154642,3.77297177,2650.5,2650.1,50.279]
[1747961155382,3.77297177,2650.5,2650.2,8.0]
[1747961155887,5.2904614,2650.8,2650.2,8.0]
[1747961156476,3.77311446,2650.4,2650.2,8.0]
[1747961158258,3.77275515,2650.6,2650.2,8.0]
[1747961158461,3.77262952,2650.7,2650.2,11.77328464]
[1747961158886,0.02,2650.9,2650.2,8.0]
[1747961159062,3.77290504,2650.5,2650.2,8.0]
[1747961159275,3.7728,2650.6,2650.2,8.0]
[1747961159482,3.77266929,2650.7,2650.2,11.77326919]
[1747961159686,3.7923554,2650.9,2650.5,8.0]
[1747961159879,3.79231248,2650.9,2650.6,14.69]
[1747961160111,3.7725402,2650.8,2650.7,11.305]
[1747961160835,3.77258837,2650.7,2650.6,22.69]
[1747961161005,3.77258837,2650.7,2650.6,33.995]
[1747961162040,3.77287784,2650.5,2650.2,8.0]
[1747961162339,3.77287784,2650.5,2650.4,8.0]
[1747961162540,3.77301539,2650.4,2650.3,25.985]
[1747961162707,0.02,2650.9,2650.1,16.284]
[1747961162887,0.55,2650.8,2650.2,25.985]
[1747961163092,3.772935,2650.5,2650.2,25.985]
[1747961163800,3.77281441,2650.6,2650.2,25.985]
[1747961164030,3.77265334,2650.7,2650.2,29.75828386]
[1747961164204,3.77265334,2650.7,2650.3,3.77313559]
[1747961164528,3.77244918,2650.8,2650.4,3.77289072]
[1747961164729,3.77244918,2650.8,2650.3,11.77309843]
[1747961165226,3.79233599,2650.9,2650.4,3.7728877]
[1747961165444,3.77246999,2650.8,2650.4,8.0]
[1747961165793,3.79233599,2650.9,2650.4,3.77300392]
[1747961165794,3.79232944,2650.9,2650.4,3.77300392]
[1747961165990,0.02,2650.9,2650.3,8.0]
[1747961166333,3.77244605,2650.8,2650.3,8.0]
[1747961166629,3.77267695,2650.7,2650.5,8.0]
[1747961166840,3.77244605,2650.8,2650.2,3.77320644]
[1747961166841,3.77244605,2650.8,2650.6,25.983]
[1747961167005,3.77308224,2650.4,2650.2,8.0]
[1747961167340,3.77308224,2650.4,2650.3,33.983]
[1747961167937,3.7727664,2650.6,2650.3,33.983]
[1747961168101,3.77287304,2650.5,2650.4,11.304]
[1747961170251,3.77273489,2650.6,2650.5,8.0]
[1747961170551,3.77250881,2650.8,2650.5,8.0]
[1747961170857,0.02,2650.9,2650.8,3.77244605]
[1747961171029,0.02,2650.9,2650.8,26.45144605]
[1747961171225,3.77117514,2651.7,2650.8,26.45144605]
[1747961171226,1.5082,2651.8,2651.1,8.0]
[1747961171437,1.5082,2651.8,2650.8,26.45144605]
[1747961171438,3.77156778,2651.5,2651.2,27.582]
[1747961171756,3.77159236,2651.4,2651.3,14.679]
[1747961172151,1.5082,2651.8,2651.3,14.679]
[1747961172353,3.77147929,2651.5,2651.3,14.679]
[1747961172863,3.77132676,2651.6,2651.4,8.0]
[1747961173264,3.77145012,2651.5,2651.4,8.0]
[1747961174121,3.77145012,2651.5,2651.4,2.08456709]
[1747961174568,3.77145012,2651.5,2651.3,14.679]
[1747961174969,3.77159236,2651.4,2651.3,14.679]
[1747961175466,3.77151852,2651.5,2651.3,14.679]
[1747961176340,1.5082,2651.8,2651.3,14.679]
[1747961176770,3.77157056,2651.5,2651.3,14.679]
[1747961177662,3.77159236,2651.4,2651.3,14.679]
[1747961178562,1.5082,2651.8,2651.3,14.679]
[1747961178563,3.77122259,2651.7,2651.3,14.679]
[1747961178803,3.79088233,2651.9,2651.4,8.0]
[1747961178997,3.77110551,2651.8,2651.4,8.0]
[1747961179311,3.77145012,2651.5,2651.4,8.0]
[1747961179475,3.77138964,2651.6,2651.4,8.0]
[1747961179672,3.77159236,2651.4,2651.3,8.0]
[1747961179884,3.77155961,2651.5,2651.3,33.976]
[1747961180084,3.79094924,2651.9,2651.3,37.74761011]
[1747961180256,0.02,2651.9,2651.3,37.74769744]
[1747961180459,3.79095766,2651.9,2651.4,3.77152913]
[1747961180691,3.77104462,2651.8,2651.4,3.77152913]
[1747961180868,0.02,2651.9,2651.3,37.74769816]
[1747961181073,3.77113397,2651.8,2651.4,3.77156729]
[1747961181269,3.79093073,2651.9,2651.4,3.77156729]
[1747961181501,0.02,2651.9,2651.5,3.77145012]
[1747961181703,0.02,2651.9,2651.3,33.976]
[1747961181905,0.02,2651.9,2651.8,11.77102345]
[1747961182102,0.02,2651.9,2651.8,26.44502345]
[1747961182276,0.02,2651.9,2651.8,22.674]
[1747961182679,0.02,2651.9,2651.8,26.44502345]
[1747961182999,0.02,2651.9,2651.8,22.674]
[1747961183193,0.02,2651.9,2651.8,26.44502345]
[1747961183577,0.02,2651.9,2651.8,22.674]
[1747961184205,0.02,2651.9,2651.8,26.44502345]
[1747961184611,1.613,2652.9,2652.1,3.77055159]
[1747961184909,0.02,2652.9,2652.3,3.77031255]
[1747961185107,0.02,2652.9,2652.4,14.673]
[1747961185778,3.78952577,2652.9,2652.4,14.673]
[1747961185978,0.02,2652.9,2652.4,18.44316633]
[1747961186166,3.78947413,2652.9,2652.4,14.673]
[1747961186362,3.769727,2652.8,2652.4,14.673]
[1747961186681,3.76972435,2652.8,2652.4,14.673]
[1747961186898,3.78953951,2652.9,2652.4,18.44316953]
[1747961187096,0.02,2652.9,2652.5,3.77002354]
[1747961187300,0.02,2652.9,2652.6,3.76978533]
[1747961187498,0.02,2652.9,2652.8,3.76960193]
[1747961187797,1.5094,2653.7,2653.3,3.76886591]
[1747961188022,2.22761675,2653.7,2653.4,42.238]
[1747961188326,3.76846548,2653.6,2653.5,14.671]
[1747961189998,5.27776197,2653.7,2653.5,14.671]
[1747961190204,3.76840894,2653.7,2653.5,14.671]
[1747961190399,5.33500927,2653.9,2653.5,14.671]
[1747961190602,3.76826485,2653.8,2653.5,14.671]
[1747961191329,3.78811467,2653.9,2653.5,14.671]
[1747961191528,3.76819206,2653.8,2653.5,14.671]
[1747961191704,3.76833749,2653.7,2653.5,14.671]
[1747961192331,3.76846548,2653.6,2653.5,14.671]
[1747961192711,3.76843437,2653.7,2653.5,14.671]
[1747961193233,3.76846548,2653.6,2653.5,14.671]
[1747961193733,3.76846548,2653.6,2653.4,27.567]
[1747961193734,3.76851539,2653.6,2653.4,16.269]
[1747961194032,3.76838626,2653.7,2653.5,25.952]
[1747961194203,3.76818147,2653.8,2653.5,25.952]
[1747961194204,3.76846548,2653.6,2653.5,25.952]
[1747961195421,3.76855222,2653.6,2653.5,25.952]
[1747961196393,3.76838801,2653.7,2653.5,25.952]
[1747961196599,0.02,2653.9,2653.6,8.0]
[1747961196912,0.02,2653.9,2653.6,11.76839056]
[1747961197107,0.02,2653.9,2653.6,8.0]
[1747961197308,3.78805142,2653.9,2653.6,8.0]
[1747961197516,0.02,2653.9,2653.6,8.0]
[1747961198108,3.78804649,2653.9,2653.6,8.0]
[1747961198608,0.02,2653.9,2653.6,8.0]
[1747961198808,3.78814851,2653.9,2653.6,8.0]
[1747961199008,0.02,2653.9,2653.6,8.0]
[1747961199960,3.78808397,2653.9,2653.6,8.0]
[1747961200165,3.76837309,2653.7,2653.5,8.0]
[1747961200364,3.76837309,2653.7,2653.6,33.947]
[1747961200672,3.76825812,2653.8,2653.6,33.947]
[1747961201531,0.02,2653.9,2653.6,33.947]
[1747961201734,0.02,2653.9,2653.8,8.0]
[1747961201950,0.02,2653.9,2653.7,8.0]
[1747961203399,0.02,2653.9,2653.7,11.76830626]
[1747961203690,3.76713668,2654.6,2654.2,8.0]
[1747961203840,3.7671941,2654.5,2654.3,25.945]
[1747961204176,5.33000693,2654.7,2654.4,16.26]
[1747961204177,3.76708884,2654.6,2654.4,16.26]
[1747961204342,3.76718779,2654.5,2654.4,16.26]
[1747961205482,0.02,2654.9,2654.5,8.0]
[1747961205779,5.34037209,2655.8,2654.9,11.76650693]
[1747961205979,1.5749,2655.8,2655.1,8.0]
[1747961206183,0.02,2655.9,2655.3,8.0]
[1747961206482,3.76535059,2655.8,2655.5,8.0]
[1747961206678,3.76534923,2655.8,2655.6,14.652]
[1747961206904,3.76534923,2655.8,2655.7,11.29]
[1747961209126,3.76562735,2655.6,2655.5,8.0]
[1747961209302,3.76562735,2655.6,2655.5,33.937]
[1747961209467,3.76534377,2655.8,2655.5,33.937]
[1747961209666,3.76549774,2655.7,2655.5,33.937]
[1747961210912,3.76556076,2655.7,2655.5,33.937]
[1747961211080,3.78521902,2655.9,2655.5,33.937]
[1747961211282,3.76562735,2655.6,2655.5,33.937]
[1747961211511,3.76562735,2655.6,2655.5,8.0]
[1747961211702,3.76562735,2655.6,2655.5,33.933]
[1747961212015,1.5614,2655.9,2655.5,30.899]
[1747961212215,3.76562735,2655.6,2655.5,42.185]
[1747961212610,3.76562735,2655.6,2655.5,30.899]
[1747961212802,5.83902735,2655.6,2655.5,16.252]
[1747961213001,6.79947864,2655.6,2655.5,42.185]
[1747961213396,6.79947864,2655.6,2655.5,16.252]
[1747961213582,6.79947864,2655.6,2655.5,42.185]
[1747961214508,6.79947864,2655.6,2655.5,16.252]
[1747961214702,6.79947864,2655.6,2655.5,42.184]
[1747961215021,5.28902735,2655.6,2655.5,42.184]
[1747961215380,5.28902735,2655.6,2655.5,16.252]
[1747961215915,5.28902735,2655.6,2655.5,42.183]
[1747961216418,5.28902735,2655.6,2654.8,16.251]
[1747961216419,5.34762021,2654.9,2654.8,16.251]
[1747961216583,1.581,2654.9,2654.8,25.931]
[1747961216783,5.34762021,2654.9,2654.8,25.931]
[1747961218076,3.76676209,2654.8,2654.7,16.251]
[1747961218281,3.76676209,2654.8,2654.7,42.182]
[1747961218528,3.76676209,2654.8,2654.7,16.251]
[1747961218837,3.76676209,2654.8,2654.7,42.182]
[1747961219825,3.76676209,2654.8,2654.7,16.251]
[1747961219992,3.76676209,2654.8,2654.7,42.182]
[1747961222219,1.5038,2655.1,2654.7,42.182]
[1747961222532,3.76667654,2654.9,2654.8,2.7207493]
[1747961224255,3.76667654,2654.9,2654.7,42.182]
[1747961224256,3.76676209,2654.8,2654.7,24.251]
[1747961224612,3.76676209,2654.8,2654.7,52.8947493]
[1747961227538,3.76676209,2654.8,2654.7,30.888]
[1747961227539,5.87786209,2654.8,2654.7,30.888]
[1747961227728,6.84702462,2654.8,2654.7,42.174]
[1747961228148,6.84702462,2654.8,2654.7,16.251]
[1747961229065,5.39555554,2654.1,2654.0,18.9727493]
[1747961229359,5.39555554,2654.1,2654.0,44.8957493]
[1747961230364,1.5551,2654.4,2654.0,44.8957493]
[1747961231024,3.76775554,2654.1,2654.0,44.8957493]
[1747961232428,3.76775554,2654.1,2654.0,30.889]
[1747961232627,6.72469264,2654.1,2654.0,16.252]
[1747961232854,6.72469264,2654.1,2653.1,0.02]
[1747961232855,1.6628,2653.4,2653.1,0.02]
[1747961233057,3.76903361,2653.2,2653.1,14.659]
[1747961233254,4.31903361,2653.2,2653.1,14.659]
[1747961233831,5.29410613,2653.2,2653.1,14.659]
[1747961234160,6.81080613,2653.2,2653.1,14.659]
[1747961234635,4.31974403,2652.7,2652.6,16.254]
[1747961234834,5.83644403,2652.7,2652.6,30.893]
[1747961235574,6.79705049,2652.7,2652.6,30.893]
[1747961236443,6.79705049,2652.7,2652.1,0.02]
[1747961236444,0.55,2652.6,2652.1,0.02]
[1747961236649,5.89255471,2652.2,2652.1,0.02]
[1747961236849,5.93969035,2652.2,2652.1,0.02]
[1747961237047,6.91069226,2652.2,2652.1,14.663]
[1747961237266,6.86355662,2652.2,2652.1,14.663]
[1747961239979,5.84826566,2651.7,2651.6,14.647]
[1747961240151,6.43309223,2651.7,2651.6,14.647]
[1747961241686,3.77116566,2651.7,2651.6,17.3677493]
[1747961241993,4.36830816,2651.7,2651.6,14.647]
[1747961242194,3.77116566,2651.7,2651.6,14.647]
[1747961242651,2.1215,2652.0,2651.6,14.647]
[1747961242652,3.77088125,2651.9,2651.6,14.647]
[1747961242852,3.77088125,2651.9,2651.7,2.7207493]
[1747961243053,3.77102345,2651.8,2651.7,2.7207493]
[1747961243756,3.77093457,2651.9,2651.7,2.7207493]
[1747961244584,3.77102345,2651.8,2651.7,2.7207493]
[1747961247379,3.76953487,2652.9,2651.7,10.7207493]
[1747961247380,1.6179,2652.6,2651.7,10.7207493]
[1747961247577,3.76953487,2652.9,2652.4,2.7207493]
[1747961247578,3.77002827,2652.5,2652.4,2.7207493]
[1747961247792,3.77002827,2652.5,2652.4,28.6717493]
[1747961250585,3.77002827,2652.5,2652.4,2.7207493]
[1747961250808,3.77002827,2652.5,2652.4,28.6707493]
[1747961251014,3.76990599,2652.6,2652.4,28.6707493]
[1747961251329,0.02,2653.9,2652.4,28.6707493]
[1747961251330,3.76874952,2653.4,2652.5,8.0]
[1747961251469,3.76954602,2652.9,2652.5,8.0]
[1747961251828,3.7692574,2653.1,2652.9,0.04]
[1747961252058,3.76917568,2653.1,2653.0,28.6707493]
[1747961252268,1.5008,2655.5,2653.4,3.76874952]
[1747961252557,3.76679268,2654.8,2654.7,2.7207493]
[1747961252706,3.76679268,2654.8,2654.7,16.269]
[1747961252707,0.37867927,2654.8,2654.7,16.269]
[1747961252904,3.76650222,2655.0,2654.7,42.216]
[1747961253202,0.04708464,2655.4,2654.8,2.7207493]
[1747961253397,3.76616545,2655.3,2654.8,2.7207493]
[1747961253634,5.64997776,2655.7,2654.8,14.45543288]
[1747961253835,5.64997776,2655.7,2654.8,10.68867079]
[1747961253836,1.88447688,2655.7,2654.8,10.68867079]
[1747961254053,1.93154826,2655.7,2654.8,36.62867079]
[1747961254202,1.88447688,2655.7,2654.8,40.39543288]
[1747961255730,3.76573137,2655.6,2654.8,28.62867079]
[1747961255938,1.88447688,2655.7,2655.3,3.76604567]
[1747961256151,1.88447688,2655.7,2655.5,2.64867079]
[1747961256346,1.88447688,2655.7,2655.6,25.94]
[1747961256550,0.02,2655.9,2655.6,29.70562735]
[1747961256705,0.02,2655.9,2655.7,16.26]
[1747961257110,3.76398333,2656.8,2655.7,16.26]
[1747961257111,0.02,2657.9,2656.8,3.76392652]
[1747961257311,0.02,2657.9,2657.8,11.76251034]
[1747961257537,0.02,2657.9,2657.8,57.22518113]
[1747961257722,0.02,2657.9,2657.8,30.67118113]
[1747961257937,0.02,2657.9,2657.8,34.17167079]
[1747961258137,0.02,2657.9,2657.8,53.46267079]
[1747961258951,0.02,2657.9,2657.8,57.22518113]
[1747961259247,0.02,2657.9,2657.8,30.67118113]
[1747961259497,0.02,2657.9,2657.8,57.22518113]
[1747961260354,0.02,2657.9,2657.8,31.516]
[1747961260650,0.02,2657.9,2657.1,11.286]
[1747961260852,0.55,2657.8,2657.2,26.542]
[1747961261063,0.02,2657.9,2657.7,3.76265191]
[1747961261356,1.88447688,2658.4,2658.3,3.80180265]
[1747961261532,0.02,2658.9,2658.4,8.0]
[1747961261854,0.02,2658.9,2658.8,10.64867079]
[1747961262360,3.75890759,2660.4,2658.8,10.64867079]
[1747961262361,1.634,2660.6,2659.2,3.76043225]
[1747961262532,1.634,2660.6,2659.7,2.64867079]
[1747961262533,3.75968117,2659.8,2659.7,2.64867079]
[1747961262715,3.75968117,2659.8,2659.7,17.90467079]
[1747961263059,3.75942386,2660.0,2659.7,17.90467079]
[1747961263352,1.634,2660.6,2659.7,17.90467079]
[1747961263659,3.75887594,2660.4,2659.7,17.90467079]
[1747961263954,1.6366,2659.8,2659.6,15.249]
[1747961264339,3.77963171,2659.9,2659.6,17.89767079]
[1747961264714,0.02,2659.9,2659.6,17.89767079]
[1747961264958,0.02,2659.9,2659.7,8.0]
[1747961265157,0.02,2659.9,2659.3,16.292]
[1747961265158,0.02,2659.9,2659.5,2.64867079]
[1747961265328,0.02,2659.9,2659.8,11.281]
[1747961265532,0.02,2659.9,2659.8,19.281]